[Event "94th FRA-ch Open C 2019"]
[Site "Chartres"]
[Date "2019.08.25"]
[Round "9.2"]
[White "Cresswell, Patrick"]
[Black "Brun, Pierre"]
[Result "1-0"]
[ECO "D02"]
[WhiteElo "1664"]
[BlackElo "1648"]
[Annotator "NA"]
[PlyCount "85"]
[EventDate "2019.08.17"]
[EventType "swiss"]
[EventCountry "FRA"]
[SourceTitle "playchess.com"]
[Source "ChessBase"]
[SourceQuality "1"]
[TimeControl "40/5400+30:1800+30"]

1. d4 {[%emt 0:00:00]} Nf6 {[%emt 0:00:00]} 2. Nf3 {[%emt 0:00:00]} c5 {[%emt 0:00:00]} 3. e3 {[%emt 0:00:00]} g6 {[%emt 0:00:25]} 4. c3 {[%emt 0:00:15]} Bg7 {[%emt 0:00:07]} 5. Be2 {[%emt 0:00:35]} d5 {[%emt 0:00:29]} 6. Nbd2 {[%emt 0:00:37]} Nc6 {[%emt 0:00:26]} 7. O-O {[%emt 1:32:03]} O-O {[%emt 0:00:19]} 8. dxc5 {[%emt 0:00:00]} Nd7 {[%emt 0:00:43]} 9. Nb3 {[%emt 0:00:00]} e6 {[%emt 0:00:50]} 10. c4 {[%emt 0:00:00]} dxc4 {[%emt 0:01:03]} 11. Bxc4 {[%emt 0:02:00]} Na5 {[%emt 0:13:37]} 12. Nfd2 {[%emt 0:00:00]} Nxc4 {[%emt 0:04:41]} 13. Nxc4 {[%emt 0:00:00]} Qe7 {[%emt 0:00:13]} 14. Qd6 {[%emt 0:00:00]} Qh4 {[%emt 0:00:43]} 15. Qf4 {[%emt 0:00:00]} Qh5 {[%emt 0:00:53]} 16. e4 {[%emt 0:00:00]} Ne5 {[%emt 0:03:23]} 17. Nd6 {[%emt 0:00:00]} Nd3 {[%emt 0:05:18]} 18. Qe3 {[%emt 0:00:00]} Nxc1 {[%emt 0:00:50]} 19. Qxc1 {[%emt 0:00:00]} e5 {[%emt 0:02:45]} 20. Na5 {[%emt 0:00:00]} Bh6 {[%emt 0:02:46]} 21. Qc3 {[%emt 0:00:00]} Bf4 {[%emt 0:01:22]} 22. g3 {[%emt 0:00:00]} Bh3 {[%emt 0:05:34]} 23. gxf4 {[%emt 0:00:00]} exf4 {[%emt 0:00:15]} 24. Kh1 {[%emt 0:00:00]} Bxf1 {[%emt 0:00:25]} 25. Rxf1 {[%emt 0:00:00]} Qe2 {[%emt 0:01:39]} 26. Kg2 {[%emt 0:00:00]} Qg4+ {[%emt 0:00:30]} 27. Kh1 {[%emt 0:00:00]} Qe2 {[%emt 0:01:15]} 28. Rg1 {[%emt 0:00:00]} Qxf2 {[%emt 0:01:32]} 29. Nf5 {[%emt 0:00:00]} f6 {[%emt 0:00:34]} 30. e5 {[%emt 0:00:00]} Qe2 {[%emt 0:01:06]} 31. Qb3+ {[%emt 0:00:00]} Kh8 {[%emt 0:00:12]} 32. Qxb7 {[%emt 0:00:00]} Rg8 {[%emt 0:00:39]} 33. Nh6 {[%emt 0:00:00]} Raf8 {[%emt 0:00:30]} 34. Nxg8 {[%emt 0:00:00]} Rxg8 {[%emt 0:00:07]} 35. exf6 {[%emt 0:00:00]} f3 {[%emt 0:00:48]} 36. Qe7 {[%emt 0:00:37]} Qd2 {[%emt 0:02:36]} 37. f7 {[%emt 0:00:23]} Qxb2 {[%emt 0:02:03]} 38. fxg8=Q+ {[%emt 0:00:22]} Kxg8 {[%emt 0:00:04]} 39. Qd8+ {[%emt 0:00:25]} Kg7 {[%emt 0:00:09]} 40. Qc7+ {[%emt 0:00:08]} Kh6 {[%emt 0:01:11]} 41. Qf4+ {[%emt 0:30:10]} Kg7 {[%emt 0:30:04]} 42. Qxf3 {[%emt 0:00:05]} Qxa2 {[%emt 0:00:12]} 43. Nb3 {[%emt 0:00:39]} 1-0

[Event "94th FRA-ch Open C 2019"]
[Site "Chartres"]
[Date "2019.08.25"]
[Round "9.3"]
[White "Sithisak, Remi"]
[Black "Shefay, Paul"]
[Result "1-0"]
[ECO "E18"]
[WhiteElo "1635"]
[BlackElo "1680"]
[Annotator "NA"]
[PlyCount "145"]
[EventDate "2019.08.17"]
[EventType "swiss"]
[EventCountry "FRA"]
[SourceTitle "playchess.com"]
[Source "ChessBase"]
[SourceQuality "1"]
[TimeControl "40/5400+30:1800+30"]

1. d4 {[%emt 0:00:00]} d5 {[%emt 0:02:32]} 2. Nf3 {[%emt 0:00:23]} e6 {[%emt 0:00:49]} 3. c4 {[%emt 0:00:47]} Nf6 {[%emt 0:00:16]} 4. g3 {[%emt 0:00:58]} Be7 {[%emt 0:03:28]} 5. Bg2 {[%emt 0:00:52]} b6 {[%emt 0:00:39]} 6. cxd5 {[%emt 0:03:54]} exd5 {[%emt 0:01:40]} 7. Nc3 {[%emt 0:01:16]} Bb7 {[%emt 0:00:23]} 8. O-O {[%emt 0:01:04]} O-O {[%emt 0:00:51]} 9. Bf4 {[%emt 0:02:36]} Bd6 {[%emt 0:03:29]} 10. Bxd6 {[%emt 0:05:22]} Qxd6 {[%emt 0:00:38]} 11. Rc1 {[%emt 0:02:14]} a6 {[%emt 0:02:58]} 12. Qc2 {[%emt 0:13:00]} Nbd7 {[%emt 0:03:46]} 13. Rfd1 {[%emt 0:02:44]} Rac8 {[%emt 0:01:27]} 14. Nh4 {[%emt 0:05:24]} g6 {[%emt 0:05:40]} 15. b3 {[%emt 0:07:38]} Rfe8 {[%emt 0:03:08]} 16. Qb2 {[%emt 0:03:35]} Ne4 {[%emt 0:02:59]} 17. Nf3 {[%emt 0:10:50]} Qe6 {[%emt 0:08:43]} 18. Nxe4 {[%emt 0:05:27]} dxe4 {[%emt 0:03:22]} 19. Ng5 {[%emt 0:02:52]} Qe7 {[%emt 0:02:00]} 20. h4 {[%emt 0:02:03]} h6 {[%emt 0:00:30]} 21. Nh3 {[%emt 0:00:30]} Nf6 {[%emt 0:00:30]} 22. Nf4 {[%emt 0:00:30]} Nd5 {[%emt 0:00:30]} 23. Qd2 {[%emt 0:00:30]} Rcd8 {[%emt 0:00:30]} 24. Nxd5 {[%emt 0:00:30]} Bxd5 {[%emt 0:00:30]} 25. Qxh6 {[%emt 0:00:30]} c6 {[%emt 0:00:30]} 26. Qg5 {[%emt 0:00:30]} Qe6 {[%emt 0:00:30]} 27. Kh2 {[%emt 0:00:30]} Kg7 {[%emt 0:00:30]} 28. Bh3 {[%emt 0:00:30]} Qd6 {[%emt 0:00:30]} 29. e3 {[%emt 0:00:30]} Rh8 {[%emt 0:00:30]} 30. Qe5+ {[%emt 0:00:30]} Qxe5 {[%emt 0:00:30]} 31. dxe5 {[%emt 0:00:30]} Rhe8 {[%emt 0:00:30]} 32. Bf1 {[%emt 0:00:30]} a5 {[%emt 0:00:30]} 33. Rd4 {[%emt 0:00:30]} Rxe5 {[%emt 0:00:30]} 34. Rxc6 {[%emt 0:00:30]} Bxc6 {[%emt 0:00:30]} 35. Rxd8 {[%emt 0:00:30]} Rc5 {[%emt 0:00:30]} 36. Rb8 {[%emt 0:00:30]} b5 {[%emt 0:00:30]} 37. Rc8 {[%emt 0:00:30]} b4 {[%emt 0:00:30]} 38. Bc4 {[%emt 0:00:30]} a4 {[%emt 0:00:30]} 39. Rb8 {[%emt 0:00:30]} Rf5 {[%emt 0:50:09]} 40. Kg2 {[%emt 0:26:32]} axb3 {[%emt 0:00:46]} 41. axb3 {[%emt 0:30:22]} Bd5 {[%emt 0:08:17]} 42. Rxb4 {[%emt 0:00:00]} Bxc4 {[%emt 0:00:51]} 43. Rxc4 {[%emt 0:00:00]} Re5 {[%emt 0:01:11]} 44. g4 {[%emt 0:00:00]} f5 {[%emt 0:01:46]} 45. gxf5 {[%emt 0:00:00]} gxf5 {[%emt 0:00:19]} 46. Kg3 {[%emt 0:00:00]} Rb5 {[%emt 0:01:20]} 47. b4 {[%emt 0:00:00]} Kg6 {[%emt 0:00:33]} 48. Rc6+ {[%emt 0:00:00]} Kg7 {[%emt 0:03:08]} 49. Rc5 {[%emt 0:00:00]} Rxb4 {[%emt 0:00:19]} 50. Rxf5 {[%emt 0:05:37]} Kg6 {[%emt 0:01:05]} 51. Rf4 {[%emt 0:00:00]} Kg7 {[%emt 0:04:32]} 52. f3 {[%emt 0:00:00]} Rb1 {[%emt 0:00:21]} 53. Rxe4 {[%emt 0:00:00]} Rg1+ {[%emt 0:00:17]} 54. Kf2 {[%emt 0:00:00]} Rh1 {[%emt 0:00:13]} 55. Rg4+ {[%emt 0:00:00]} Kf6 {[%emt 0:00:21]} 56. Kg2 {[%emt 0:00:00]} Re1 {[%emt 0:00:16]} 57. e4 {[%emt 0:00:00]} Re2+ {[%emt 0:00:37]} 58. Kg3 {[%emt 0:04:00]} Re1 {[%emt 0:00:10]} 59. h5 {[%emt 0:00:00]} Rh1 {[%emt 0:00:21]} 60. Rh4 {[%emt 0:00:00]} Rb1 {[%emt 0:00:58]} 61. h6 {[%emt 0:00:00]} Rb8 {[%emt 0:01:33]} 62. h7 {[%emt 0:00:00]} Rh8 {[%emt 0:00:05]} 63. Kf4 {[%emt 0:00:00]} Kg7 {[%emt 0:00:14]} 64. e5 {[%emt 0:00:00]} Rf8+ {[%emt 0:00:18]} 65. Ke4 {[%emt 0:00:00]} Kh8 {[%emt 0:00:11]} 66. e6 {[%emt 0:00:00]} Ra8 {[%emt 0:00:29]} 67. Ke5 {[%emt 0:00:00]} Ra5+ {[%emt 0:00:16]} 68. Kf6 {[%emt 0:00:00]} Rh5 {[%emt 0:04:46]} 69. Rg4 {[%emt 0:00:00]} Rh3 {[%emt 0:01:11]} 70. e7 {[%emt 0:00:00]} Rxf3+ {[%emt 0:00:22]} 71. Ke5 {[%emt 0:00:00]} Kxh7 {[%emt 0:04:19]} 72. e8=Q {[%emt 0:00:00]} Rf8 {[%emt 0:00:21]} 73. Qh5# {[%emt 0:07:30]} 1-0

[Event "94th FRA-ch Open C 2019"]
[Site "Chartres"]
[Date "2019.08.25"]
[Round "9.4"]
[White "Brecheteau, Paul"]
[Black "Silvera, Ruben"]
[Result "1/2-1/2"]
[ECO "C54"]
[WhiteElo "1627"]
[BlackElo "1747"]
[Annotator "NA"]
[PlyCount "94"]
[EventDate "2019.08.17"]
[EventType "swiss"]
[EventCountry "FRA"]
[SourceTitle "playchess.com"]
[Source "ChessBase"]
[SourceQuality "1"]
[TimeControl "40/5400+30:1800+30"]

1. e4 {[%emt 0:00:00]} e5 {[%emt 0:00:00]} 2. Nf3 {[%emt 0:00:00]} Nc6 {[%emt 0:00:00]} 3. Bc4 {[%emt 0:00:09]} Bc5 {[%emt 0:00:00]} 4. c3 {[%emt 0:00:34]} Nf6 {[%emt 0:00:03]} 5. d4 {[%emt 0:00:10]} exd4 {[%emt 0:00:04]} 6. e5 {[%emt 0:00:09]} d5 {[%emt 0:00:24]} 7. Bb5 {[%emt 0:00:54]} Ne4 {[%emt 0:00:37]} 8. cxd4 {[%emt 0:00:16]} Bb4+ {[%emt 0:01:46]} 9. Bd2 {[%emt 0:00:11]} Bxd2+ {[%emt 0:12:56]} 10. Nbxd2 {[%emt 0:00:18]} O-O {[%emt 0:00:20]} 11. h3 {[%emt 0:10:12]} Ne7 {[%emt 0:02:37]} 12. O-O {[%emt 0:03:48]} Ng6 {[%emt 0:07:41]} 13. Re1 {[%emt 0:01:49]} Nxd2 {[%emt 0:13:49]} 14. Qxd2 {[%emt 0:00:15]} f6 {[%emt 0:00:47]} 15. Bd3 {[%emt 0:01:54]} fxe5 {[%emt 0:06:17]} 16. Bxg6 {[%emt 0:02:03]} hxg6 {[%emt 0:01:04]} 17. dxe5 {[%emt 0:00:21]} Bxh3 {[%emt 0:00:44]} 18. e6 {[%emt 0:01:38]} Qe7 {[%emt 0:12:05]} 19. Qxd5 {[%emt 0:03:49]} Rad8 {[%emt 0:01:11]} 20. Qg5 {[%emt 0:03:49]} Rde8 {[%emt 0:00:23]} 21. Qxg6 {[%emt 0:03:28]} Rf6 {[%emt 0:02:48]} 22. Qh5 {[%emt 0:10:26]} Bxe6 {[%emt 0:00:56]} 23. Rad1 {[%emt 0:10:50]} Qf7 {[%emt 0:05:36]} 24. Qxf7+ {[%emt 0:01:34]} Rxf7 {[%emt 0:00:27]} 25. Ng5 {[%emt 0:00:26]} Rfe7 {[%emt 0:00:12]} 26. b3 {[%emt 0:01:25]} Kf8 {[%emt 0:04:44]} 27. Nxe6+ {[%emt 0:01:56]} Rxe6 {[%emt 0:00:05]} 28. Rxe6 {[%emt 0:00:08]} Rxe6 {[%emt 0:00:07]} 29. Rd2 {[%emt 0:00:13]} Ke7 {[%emt 0:00:37]} 30. f3 {[%emt 0:00:51]} c5 {[%emt 0:02:07]} 31. Kf2 {[%emt 0:00:13]} b5 {[%emt 0:03:41]} 32. f4 {[%emt 0:42:11]} g6 {[%emt 0:00:41]} 33. Kf3 {[%emt 0:00:00]} a6 {[%emt 0:01:19]} 34. g4 {[%emt 0:00:00]} Kf6 {[%emt 0:00:33]} 35. Rd7 {[%emt 0:00:00]} Rc6 {[%emt 0:00:21]} 36. Rd2 {[%emt 0:00:00]} Ke6 {[%emt 0:03:30]} 37. Ke4 {[%emt 0:00:00]} Rd6 {[%emt 0:04:02]} 38. f5+ {[%emt 0:00:00]} gxf5+ {[%emt 0:00:06]} 39. gxf5+ {[%emt 0:00:00]} Kd7 {[%emt 0:07:29]} 40. Rxd6+ {[%emt 0:00:00]} Kxd6 {[%emt 0:00:04]} 41. f6 {[%emt 0:02:29]} Ke6 {[%emt 0:31:06]} 42. f7 {[%emt 0:00:09]} Kxf7 {[%emt 0:00:02]} 43. Kd5 {[%emt 0:00:07]} c4 {[%emt 0:00:04]} 44. bxc4 {[%emt 0:00:07]} bxc4 {[%emt 0:00:05]} 45. Kxc4 {[%emt 0:00:09]} Ke7 {[%emt 0:00:10]} 46. Kc5 {[%emt 0:00:34]} a5 {[%emt 0:00:02]} 47. a4 {[%emt 0:00:32]} Kd7 {[%emt 0:00:03]} 1/2-1/2

[Event "94th FRA-ch Open C 2019"]
[Site "Chartres"]
[Date "2019.08.25"]
[Round "9.5"]
[White "Masalles, Gabriel"]
[Black "Chaillou, Vincent"]
[Result "0-1"]
[ECO "B52"]
[WhiteElo "1723"]
[BlackElo "1654"]
[Annotator "NA"]
[PlyCount "84"]
[EventDate "2019.08.17"]
[EventType "swiss"]
[EventCountry "FRA"]
[SourceTitle "playchess.com"]
[Source "ChessBase"]
[SourceQuality "1"]
[TimeControl "40/5400+30:1800+30"]

1. e4 {[%emt 0:00:00]} c5 {[%emt 0:00:23]} 2. Nf3 {[%emt 0:00:00]} d6 {[%emt 0:00:04]} 3. Bb5+ {[%emt 0:00:20]} Bd7 {[%emt 0:00:07]} 4. Bxd7+ {[%emt 0:00:09]} Qxd7 {[%emt 0:00:07]} 5. O-O {[%emt 0:00:19]} Nf6 {[%emt 0:00:05]} 6. Qe2 {[%emt 0:01:17]} Nc6 {[%emt 0:00:19]} 7. Rd1 {[%emt 0:01:36]} g6 {[%emt 0:03:12]} 8. c3 {[%emt 0:03:04]} Qg4 {[%emt 0:05:21]} 9. Re1 {[%emt 0:25:10]} Bg7 {[%emt 0:09:48]} 10. d4 {[%emt 0:03:51]} cxd4 {[%emt 0:00:23]} 11. cxd4 {[%emt 0:01:10]} O-O {[%emt 0:01:14]} 12. Nc3 {[%emt 0:02:04]} Rfe8 {[%emt 0:05:13]} 13. h3 {[%emt 0:06:42]} Qh5 {[%emt 0:05:59]} 14. Be3 {[%emt 0:05:33]} a6 {[%emt 0:02:01]} 15. Qf1 {[%emt 0:05:47]} Rac8 {[%emt 0:00:48]} 16. d5 {[%emt 0:09:52]} Ne5 {[%emt 0:02:16]} 17. Nxe5 {[%emt 0:01:42]} Qxe5 {[%emt 0:03:24]} 18. f4 {[%emt 0:00:43]} Qh5 {[%emt 0:00:07]} 19. Bd4 {[%emt 0:09:02]} Nd7 {[%emt 0:06:14]} 20. Bxg7 {[%emt 0:00:47]} Kxg7 {[%emt 0:00:05]} 21. Rac1 {[%emt 0:01:18]} Rc7 {[%emt 0:00:44]} 22. Qd3 {[%emt 0:05:45]} Rec8 {[%emt 0:02:53]} 23. Qd4+ {[%emt 0:00:40]} Kg8 {[%emt 0:00:13]} 24. b3 {[%emt 0:01:58]} Qh4 {[%emt 0:06:29]} 25. Qe3 {[%emt 0:03:32]} b5 {[%emt 0:02:39]} 26. e5 {[%emt 0:04:37]} dxe5 {[%emt 0:00:13]} 27. fxe5 {[%emt 0:00:12]} Qb4 {[%emt 0:07:27]} 28. e6 {[%emt 0:01:59]} Nf6 {[%emt 0:00:44]} 29. exf7+ {[%emt 0:00:31]} Kxf7 {[%emt 0:00:16]} 30. Qe6+ {[%emt 0:00:58]} Kg7 {[%emt 0:00:10]} 31. Ne2 {[%emt 0:00:22]} Rxc1 {[%emt 0:00:52]} 32. Rxc1 {[%emt 0:01:12]} Rxc1+ 33. Nxc1 {[%emt 0:00:01]} Qc5+ {[%emt 0:03:47]} 34. Kh2 {[%emt 0:00:51]} Qd6+ {[%emt 0:01:03]} 35. g3 {[%emt 0:01:50]} Nxd5 {[%emt 0:00:19]} 36. Qe2 {[%emt 0:02:27]} e5 {[%emt 0:00:37]} 37. Nd3 {[%emt 0:00:28]} Nc3 {[%emt 0:01:40]} 38. Qc2 {[%emt 0:00:40]} Qd4 {[%emt 0:00:23]} 39. Ne1 {[%emt 0:00:18]} Qe3 {[%emt 0:01:05]} 40. Nd3 {[%emt 0:00:41]} Ne2 {[%emt 0:03:35]} 41. Kg2 {[%emt 0:09:14]} Qg1+ {[%emt 0:00:22]} 42. Kf3 {[%emt 0:00:01]} Nd4+ {[%emt 0:00:11]} 0-1

[Event "94th FRA-ch Open C 2019"]
[Site "Chartres"]
[Date "2019.08.25"]
[Round "9.6"]
[White "Arendo, Marc"]
[Black "Massiani, Xavier"]
[Result "0-1"]
[ECO "B15"]
[WhiteElo "1694"]
[BlackElo "1720"]
[Annotator "NA"]
[PlyCount "108"]
[EventDate "2019.08.17"]
[EventType "swiss"]
[EventCountry "FRA"]
[SourceTitle "playchess.com"]
[Source "ChessBase"]
[SourceQuality "1"]
[TimeControl "40/5400+30:1800+30"]

1. e4 {[%emt 0:00:00]} c6 {[%emt 0:00:00]} 2. d4 {[%emt 0:00:23]} d5 {[%emt 0:00:00]} 3. Nc3 {[%emt 0:00:47]} dxe4 {[%emt 0:00:00]} 4. Nxe4 {[%emt 0:00:08]} Nf6 {[%emt 0:00:00]} 5. Ng3 {[%emt 0:04:04]} h5 {[%emt 0:03:54]} 6. h4 {[%emt 0:01:29]} Bg4 {[%emt 0:03:23]} 7. Be2 {[%emt 0:04:36]} Qc7 {[%emt 0:04:45]} 8. c3 {[%emt 0:05:43]} e6 {[%emt 0:03:15]} 9. Bg5 {[%emt 0:10:58]} Nbd7 {[%emt 0:01:03]} 10. Bxg4 {[%emt 0:02:16]} hxg4 {[%emt 0:00:19]} 11. N1e2 {[%emt 0:02:07]} Bd6 {[%emt 0:07:15]} 12. Qd2 {[%emt 0:01:59]} O-O-O {[%emt 0:06:51]} 13. O-O-O {[%emt 0:00:23]} Qa5 {[%emt 0:00:39]} 14. Kb1 {[%emt 1:02:07]} e5 {[%emt 0:12:53]} 15. Nf5 {[%emt 0:00:00]} Bc7 {[%emt 0:03:36]} 16. Qc2 {[%emt 0:00:00]} g6 {[%emt 0:03:50]} 17. Ne7+ {[%emt 0:00:00]} Kb8 {[%emt 0:00:14]} 18. Qb3 {[%emt 0:00:00]} Qa6 {[%emt 0:05:30]} 19. Ng3 {[%emt 0:00:00]} exd4 {[%emt 0:09:09]} 20. Rxd4 {[%emt 0:00:00]} c5 {[%emt 0:05:22]} 21. Bxf6 {[%emt 0:00:00]} Nxf6 {[%emt 0:01:08]} 22. Rxd8+ {[%emt 0:00:00]} Rxd8 {[%emt 0:00:17]} 23. c4 {[%emt 0:00:00]} Qe6 {[%emt 0:03:01]} 24. Nd5 {[%emt 0:00:00]} Nxd5 {[%emt 0:00:05]} 25. cxd5 {[%emt 0:00:00]} Qxd5 {[%emt 0:00:07]} 26. Qxd5 {[%emt 0:06:00]} Rxd5 {[%emt 0:00:06]} 27. Ne4 {[%emt 0:00:00]} f5 {[%emt 0:01:07]} 28. Nc3 {[%emt 0:00:00]} Rd2 {[%emt 0:00:11]} 29. Re1 {[%emt 0:00:00]} a6 {[%emt 0:00:46]} 30. Rf1 {[%emt 0:00:00]} Be5 {[%emt 0:26:14]} 31. Nd1 {[%emt 0:00:00]} Bd4 {[%emt 0:00:00]} 32. g3 {[%emt 0:00:00]} Re2 {[%emt 0:00:00]} 33. a3 {[%emt 0:00:00]} Kc7 {[%emt 0:00:00]} 34. f3 {[%emt 0:00:00]} gxf3 {[%emt 0:00:00]} 35. Rxf3 {[%emt 0:00:00]} Kc6 {[%emt 0:00:00]} 36. h5 {[%emt 0:00:00]} gxh5 {[%emt 0:00:00]} 37. Rxf5 {[%emt 0:00:00]} Re5 {[%emt 0:00:00]} 38. Rf6+ {[%emt 0:00:48]} Kd5 {[%emt 0:00:00]} 39. Rb6 {[%emt 0:02:58]} Rg5 {[%emt 0:00:00]} 40. Rxb7 {[%emt 0:00:17]} Rxg3 {[%emt 0:00:00]} 41. Ra7 {[%emt 0:30:26]} Rg6 {[%emt 0:14:26]} 42. Rh7 {[%emt 0:01:15]} Rg5 {[%emt 0:00:08]} 43. Ra7 {[%emt 0:00:17]} h4 {[%emt 0:00:10]} 44. Rxa6 {[%emt 0:00:07]} Rh5 {[%emt 0:00:07]} 45. Nc3+ {[%emt 0:00:00]} Bxc3 {[%emt 0:00:00]} 46. b4 {[%emt 0:00:00]} h3 {[%emt 0:00:00]} 47. bxc5 {[%emt 0:00:00]} h2 {[%emt 0:00:00]} 48. Rd6+ {[%emt 0:00:32]} Kxc5 {[%emt 0:00:00]} 49. Rd1 {[%emt 0:00:12]} h1=Q {[%emt 0:00:00]} 50. Rxh1 {[%emt 0:00:12]} Rxh1+ {[%emt 0:00:00]} 51. Kc2 {[%emt 0:00:12]} Kc4 {[%emt 0:00:00]} 52. a4 {[%emt 0:00:15]} Rh2+ {[%emt 0:00:00]} 53. Kc1 {[%emt 0:02:24]} Kb3 {[%emt 0:00:00]} 54. Kd1 {[%emt 0:01:28]} Ba5 {[%emt 0:00:00]} 0-1